[Event "Late-Titled-Tuesday-Blitz-May-07-2024"]
[Site "Chess.com"]
[Date "2024.05.07"]
[Round "5"]
[White "dealshark"]
[Black "Denisenko_Denis"]
[Result "0-1"]
[WhiteElo "2542"]
[BlackElo "2404"]
[TimeControl "180+1"]
[EndTime "14:54:23 PDT"]
[Termination "Denisenko_Denis won by resignation"]

1. e4 {[%clk 0:03:00.9]} 1... e5 {[%clk 0:02:59.5]} 2. Nf3 {[%clk 0:03:00.9]}
2... Nf6 {[%clk 0:02:59.3]} 3. Nxe5 {[%clk 0:03:00.7]} 3... Nxe4 {[%clk
0:02:59.4]} 4. Qe2 {[%clk 0:02:53.8]} 4... Qe7 {[%clk 0:02:58]} 5. Qxe4 {[%clk
0:02:50.3]} 5... d6 {[%clk 0:02:56.9]} 6. d4 {[%clk 0:02:48.9]} 6... dxe5 {[%clk
0:02:57.1]} 7. dxe5 {[%clk 0:02:45.3]} 7... Nc6 {[%clk 0:02:57.1]} 8. Nc3 {[%clk
0:02:39.1]} 8... Qxe5 {[%clk 0:02:56.4]} 9. Bc4 {[%clk 0:02:29.2]} 9... Bd6
{[%clk 0:02:48.8]} 10. O-O {[%clk 0:02:24.8]} 10... O-O {[%clk 0:02:47.3]} 11.
Qxe5 {[%clk 0:02:19]} 11... Nxe5 {[%clk 0:02:46.1]} 12. Bb3 {[%clk 0:02:16.7]}
12... a6 {[%clk 0:02:33.6]} 13. Ne4 {[%clk 0:02:06.2]} 13... Be7 {[%clk
0:02:29.3]} 14. Bf4 {[%clk 0:02:04.2]} 14... Bd6 {[%clk 0:02:10.2]} 15. Nxd6
{[%clk 0:02:04.3]} 15... cxd6 {[%clk 0:02:10.8]} 16. Rad1 {[%clk 0:02:04.7]}
16... Be6 {[%clk 0:02:07.7]} 17. Rxd6 {[%clk 0:02:02]} 17... Bxb3 {[%clk
0:02:06.1]} 18. axb3 {[%clk 0:01:59.2]} 18... Ng6 {[%clk 0:02:06]} 19. Bg3
{[%clk 0:01:55.9]} 19... Rac8 {[%clk 0:02:01.5]} 20. c4 {[%clk 0:01:53.1]} 20...
Rfe8 {[%clk 0:01:57.6]} 21. Rfd1 {[%clk 0:01:47]} 21... b5 {[%clk 0:01:56.9]}
22. Rxa6 {[%clk 0:01:28.2]} 22... bxc4 {[%clk 0:01:56.7]} 23. bxc4 {[%clk
0:01:25.3]} 23... Rxc4 {[%clk 0:01:56.9]} 24. Rb6 {[%clk 0:01:21.3]} 24... Rd4
{[%clk 0:01:47.5]} 25. Ra1 {[%clk 0:01:10]} 25... f5 {[%clk 0:01:46.3]} 26. f3
{[%clk 0:00:59.9]} 26... f4 {[%clk 0:01:46]} 27. Bf2 {[%clk 0:00:59.8]} 27...
Rd2 {[%clk 0:01:45.9]} 28. Re1 {[%clk 0:00:57.6]} 28... Rc8 {[%clk 0:01:40.1]}
29. b4 {[%clk 0:00:20.2]} 29... Rcc2 {[%clk 0:01:38.6]} 30. Rf1 {[%clk
0:00:20.8]} 30... Ne5 {[%clk 0:01:36.5]} 31. b5 {[%clk 0:00:14.1]} 31... Nd3
{[%clk 0:01:36.3]} 32. Rc6 {[%clk 0:00:14.2]} 32... Rb2 {[%clk 0:01:30.6]} 33.
Be1 {[%clk 0:00:05.9]} 33... Rxg2+ {[%clk 0:01:27.7]} 0-1

[Event "Late-Titled-Tuesday-Blitz-May-07-2024"]
[Site "Chess.com"]
[Date "2024.05.07"]
[Round "5"]
[White "brouetoscope"]
[Black "Perecke"]
[Result "0-1"]
[WhiteElo "2328"]
[BlackElo "2547"]
[TimeControl "180+1"]
[EndTime "14:54:28 PDT"]
[Termination "Perecke won by resignation"]

1. e4 {[%clk 0:03:00.9]} 1... c5 {[%clk 0:02:59.1]} 2. Nf3 {[%clk 0:03:00.5]}
2... e6 {[%clk 0:02:59.3]} 3. c4 {[%clk 0:03:00]} 3... Nc6 {[%clk 0:02:59.4]} 4.
Be2 {[%clk 0:02:59.9]} 4... Nge7 {[%clk 0:02:53.9]} 5. O-O {[%clk 0:02:59.2]}
5... Nd4 {[%clk 0:02:53.7]} 6. Nxd4 {[%clk 0:02:55.2]} 6... cxd4 {[%clk
0:02:54.6]} 7. d3 {[%clk 0:02:54.6]} 7... Nc6 {[%clk 0:02:54.4]} 8. f4 {[%clk
0:02:53.2]} 8... Be7 {[%clk 0:02:52.7]} 9. Nd2 {[%clk 0:02:52.7]} 9... O-O
{[%clk 0:02:52.1]} 10. Nf3 {[%clk 0:02:52.8]} 10... f5 {[%clk 0:02:47.2]} 11. a3
{[%clk 0:02:31.8]} 11... a5 {[%clk 0:02:33]} 12. Kh1 {[%clk 0:02:31.2]} 12... d6
{[%clk 0:02:29.6]} 13. Bd2 {[%clk 0:02:25.3]} 13... b6 {[%clk 0:02:26.5]} 14. b4
{[%clk 0:02:24.4]} 14... axb4 {[%clk 0:02:26]} 15. axb4 {[%clk 0:02:25.3]} 15...
fxe4 {[%clk 0:01:54.5]} 16. Rxa8 {[%clk 0:02:16.5]} 16... exf3 {[%clk
0:01:54.8]} 17. Bxf3 {[%clk 0:02:16.5]} 17... Qc7 {[%clk 0:01:54.7]} 18. Ra5
{[%clk 0:02:11]} 18... bxa5 {[%clk 0:01:52.6]} 19. b5 {[%clk 0:01:53.1]} 19...
Nb4 {[%clk 0:01:37.3]} 20. Qb3 {[%clk 0:01:47.8]} 20... Bb7 {[%clk 0:01:29]} 21.
Bxb7 {[%clk 0:01:43]} 21... Qxb7 {[%clk 0:01:29.9]} 22. Bxb4 {[%clk 0:01:41.8]}
22... axb4 {[%clk 0:01:30.8]} 23. Qxb4 {[%clk 0:01:42.6]} 23... d5 {[%clk
0:01:29.2]} 24. c5 {[%clk 0:01:34.1]} 24... Rc8 {[%clk 0:01:26.9]} 25. Rc1
{[%clk 0:01:29.1]} 25... Qb6 {[%clk 0:01:23.1]} 26. Qxd4 {[%clk 0:00:57.2]}
26... Rxc5 {[%clk 0:01:23.2]} 27. Rxc5 {[%clk 0:00:51.9]} 27... Qxc5 {[%clk
0:01:24.1]} 28. Qa1 {[%clk 0:00:48.1]} 28... Qxb5 {[%clk 0:01:16.4]} 29. Qd1
{[%clk 0:00:37.5]} 29... Qb2 {[%clk 0:01:10.7]} 30. h3 {[%clk 0:00:34]} 30...
Qf2 {[%clk 0:01:08.4]} 31. Qg4 {[%clk 0:00:30.8]} 31... Qe1+ {[%clk 0:01:06.4]}
32. Kh2 {[%clk 0:00:30.9]} 32... Bd6 {[%clk 0:01:06.3]} 33. g3 {[%clk
0:00:30.1]} 33... Bc5 {[%clk 0:01:02.6]} 0-1

[Event "Late-Titled-Tuesday-Blitz-May-07-2024"]
[Site "Chess.com"]
[Date "2024.05.07"]
[Round "5"]
[White "Balla_Tamas"]
[Black "NMJeevanK"]
[Result "0-1"]
[WhiteElo "2522"]
[BlackElo "2758"]
[TimeControl "180+1"]
[EndTime "14:54:37 PDT"]
[Termination "NMJeevanK won by resignation"]

1. e4 {[%clk 0:03:00.9]} 1... d6 {[%clk 0:02:58.7]} 2. d4 {[%clk 0:03:00.6]}
2... Nf6 {[%clk 0:02:59.5]} 3. Nc3 {[%clk 0:03:01.1]} 3... e5 {[%clk 0:02:59.4]}
4. Nf3 {[%clk 0:03:01.1]} 4... Nbd7 {[%clk 0:02:58.7]} 5. Bc4 {[%clk 0:03:01.3]}
5... Be7 {[%clk 0:02:59.2]} 6. O-O {[%clk 0:03:01.2]} 6... O-O {[%clk
0:02:59.8]} 7. a4 {[%clk 0:03:01.1]} 7... h6 {[%clk 0:02:59]} 8. b3 {[%clk
0:02:51.4]} 8... c6 {[%clk 0:02:58.2]} 9. Bb2 {[%clk 0:02:37.9]} 9... Re8 {[%clk
0:02:57.8]} 10. Qe2 {[%clk 0:02:35]} 10... Bf8 {[%clk 0:02:48.4]} 11. Rad1
{[%clk 0:02:30.9]} 11... exd4 {[%clk 0:02:47.1]} 12. Rxd4 {[%clk 0:02:08.4]}
12... d5 {[%clk 0:02:44.1]} 13. Nxd5 {[%clk 0:01:46]} 13... cxd5 {[%clk
0:02:41]} 14. Bxd5 {[%clk 0:01:46.9]} 14... Qe7 {[%clk 0:02:29.5]} 15. Rfd1
{[%clk 0:01:33.9]} 15... Nb6 {[%clk 0:02:28.7]} 16. Qd2 {[%clk 0:01:13.5]} 16...
Bg4 {[%clk 0:02:22.9]} 17. Qf4 {[%clk 0:00:54.1]} 17... Bxf3 {[%clk 0:02:07.7]}
18. gxf3 {[%clk 0:00:53.8]} 18... Nbxd5 {[%clk 0:02:02.8]} 19. exd5 {[%clk
0:00:49.7]} 19... Rad8 {[%clk 0:01:59.3]} 20. d6 {[%clk 0:00:46.8]} 20... Qd7
{[%clk 0:01:58]} 21. Kh1 {[%clk 0:00:35.7]} 21... Qh3 {[%clk 0:01:44.3]} 22. Rg1
{[%clk 0:00:33.4]} 22... Bxd6 {[%clk 0:01:21.4]} 23. Rxd6 {[%clk 0:00:16.2]}
23... Rxd6 {[%clk 0:01:21]} 24. Bxf6 {[%clk 0:00:13.1]} 24... g6 {[%clk
0:01:12.5]} 25. Bc3 {[%clk 0:00:08.5]} 25... Rde6 {[%clk 0:01:08.2]} 26. Qd4
{[%clk 0:00:02.3]} 26... Qxf3+ {[%clk 0:01:07.5]} 27. Rg2 {[%clk 0:00:03.1]}
27... Re1+ {[%clk 0:01:07.6]} 0-1

[Event "Late-Titled-Tuesday-Blitz-May-07-2024"]
[Site "Chess.com"]
[Date "2024.05.07"]
[Round "5"]
[White "Assumpcaos"]
[Black "GianmarcoVaR"]
[Result "0-1"]
[WhiteElo "2216"]
[BlackElo "2764"]
[TimeControl "180+1"]
[EndTime "14:54:39 PDT"]
[Termination "GianmarcoVaR won by resignation"]

1. d4 {[%clk 0:03:00.9]} 1... Nf6 {[%clk 0:02:59.5]} 2. c4 {[%clk 0:03:00.6]}
2... e6 {[%clk 0:03:00.2]} 3. Nc3 {[%clk 0:03:00.5]} 3... Bb4 {[%clk 0:03:00.8]}
4. e3 {[%clk 0:03:00.3]} 4... O-O {[%clk 0:03:01]} 5. Bd3 {[%clk 0:02:59.5]}
5... d6 {[%clk 0:03:01.4]} 6. Nf3 {[%clk 0:02:58.3]} 6... Qe7 {[%clk 0:03:01]}
7. Qc2 {[%clk 0:02:54.6]} 7... e5 {[%clk 0:02:59.9]} 8. dxe5 {[%clk 0:02:29.8]}
8... dxe5 {[%clk 0:03:00.8]} 9. Be2 {[%clk 0:02:18.9]} 9... Bg4 {[%clk
0:02:48.9]} 10. h3 {[%clk 0:02:12.9]} 10... Bh5 {[%clk 0:02:49.3]} 11. O-O
{[%clk 0:02:11.3]} 11... Bxc3 {[%clk 0:02:48.8]} 12. Qxc3 {[%clk 0:02:07.9]}
12... e4 {[%clk 0:02:47.3]} 13. Nd4 {[%clk 0:02:06.8]} 13... Bxe2 {[%clk
0:02:28.7]} 14. Nxe2 {[%clk 0:02:07]} 14... Nc6 {[%clk 0:02:25.1]} 15. b3 {[%clk
0:02:02.8]} 15... Rad8 {[%clk 0:02:23.2]} 16. Nf4 {[%clk 0:02:01.9]} 16... Qe5
{[%clk 0:02:18.7]} 17. Bb2 {[%clk 0:01:54.9]} 17... Qg5 {[%clk 0:02:16.6]} 18.
Rad1 {[%clk 0:01:47.7]} 18... Rde8 {[%clk 0:02:15]} 19. Nd5 {[%clk 0:01:21]}
19... Nxd5 {[%clk 0:01:58.3]} 20. Rxd5 {[%clk 0:01:19.7]} 20... Qg6 {[%clk
0:01:54.5]} 21. Rd7 {[%clk 0:01:19.6]} 21... Rc8 {[%clk 0:01:42.5]} 22. Rfd1
{[%clk 0:01:19.3]} 22... Rfe8 {[%clk 0:01:40.1]} 23. R1d5 {[%clk 0:01:18.3]}
23... h6 {[%clk 0:01:38.4]} 24. b4 {[%clk 0:01:13.8]} 24... f6 {[%clk
0:01:29.8]} 25. h4 {[%clk 0:01:11.9]} 25... Ne5 {[%clk 0:01:30]} 26. Rxe5 {[%clk
0:00:43.4]} 26... Rxe5 {[%clk 0:01:30.9]} 27. Qd2 {[%clk 0:00:38.5]} 27... Ree8
{[%clk 0:01:26]} 28. Qd5+ {[%clk 0:00:38.5]} 28... Kh8 {[%clk 0:01:16.2]} 29. b5
{[%clk 0:00:32.6]} 29... h5 {[%clk 0:01:07.2]} 30. Qxb7 {[%clk 0:00:30.1]} 30...
Qg4 {[%clk 0:00:55.8]} 31. Rxc7 {[%clk 0:00:29.5]} 31... Qd1+ {[%clk 0:00:54]}
32. Kh2 {[%clk 0:00:26.9]} 32... Qd6+ {[%clk 0:00:54.9]} 0-1

[Event "Late-Titled-Tuesday-Blitz-May-07-2024"]
[Site "Chess.com"]
[Date "2024.05.07"]
[Round "5"]
[White "egnfanclub"]
[Black "Bala-Afiada"]
[Result "1-0"]
[WhiteElo "2338"]
[BlackElo "2011"]
[TimeControl "180+1"]
[EndTime "14:54:40 PDT"]
[Termination "egnfanclub won on time"]

1. e4 {[%clk 0:03:00.9]} 1... c5 {[%clk 0:02:48.2]} 2. Nc3 {[%clk 0:03:00.9]}
2... Nc6 {[%clk 0:02:47.2]} 3. f4 {[%clk 0:03:01.8]} 3... d6 {[%clk 0:02:46.2]}
4. Nf3 {[%clk 0:03:02.7]} 4... e6 {[%clk 0:02:38.1]} 5. Bc4 {[%clk 0:02:55.4]}
5... Nge7 {[%clk 0:02:34.5]} 6. d3 {[%clk 0:02:55.8]} 6... g6 {[%clk 0:02:33.1]}
7. O-O {[%clk 0:02:55.3]} 7... Bg7 {[%clk 0:02:33.2]} 8. Qe1 {[%clk 0:02:55.9]}
8... O-O {[%clk 0:02:29.7]} 9. Bb3 {[%clk 0:02:52.5]} 9... Rb8 {[%clk 0:02:26]}
10. Qh4 {[%clk 0:02:51.7]} 10... b5 {[%clk 0:02:24.1]} 11. f5 {[%clk 0:02:49]}
11... exf5 {[%clk 0:02:22.4]} 12. Bg5 {[%clk 0:02:48.1]} 12... Qb6 {[%clk
0:02:13]} 13. Kh1 {[%clk 0:02:44.6]} 13... Rb7 {[%clk 0:02:04.4]} 14. Bh6 {[%clk
0:02:26.5]} 14... c4 {[%clk 0:01:44.7]} 15. Ng5 {[%clk 0:02:03.6]} 15... Qd4
{[%clk 0:01:40.3]} 16. Nxh7 {[%clk 0:01:51.3]} 16... Bxh6 {[%clk 0:01:21.5]} 17.
Qxh6 {[%clk 0:01:46.9]} 17... Qg7 {[%clk 0:01:20.4]} 18. Qxg7+ {[%clk
0:01:45.9]} 18... Kxg7 {[%clk 0:01:21.3]} 19. Nxf8 {[%clk 0:01:40.7]} 19... cxb3
{[%clk 0:01:16.2]} 20. axb3 {[%clk 0:01:39.7]} 20... Kxf8 {[%clk 0:01:15.9]} 21.
Nd5 {[%clk 0:01:37.3]} 21... Nxd5 {[%clk 0:01:15.3]} 22. exd5 {[%clk 0:01:38.2]}
22... Ne5 {[%clk 0:01:15.9]} 23. d4 {[%clk 0:01:27.4]} 23... Ng4 {[%clk
0:01:04.1]} 24. Ra6 {[%clk 0:01:24]} 24... Ke7 {[%clk 0:00:15.2]} 25. Re1+
{[%clk 0:01:21.4]} 25... Kd7 {[%clk 0:00:13.7]} 26. c4 {[%clk 0:01:13]} 26...
bxc4 {[%clk 0:00:13]} 27. bxc4 {[%clk 0:01:13.9]} 27... Ne3 {[%clk 0:00:13.1]}
28. Rxe3 {[%clk 0:01:11.1]} 28... Rxb2 {[%clk 0:00:13.3]} 29. Rxa7+ {[%clk
0:01:10.9]} 29... Bb7 {[%clk 0:00:10.7]} 30. Kg1 {[%clk 0:01:08.3]} 1-0

[Event "Late-Titled-Tuesday-Blitz-May-07-2024"]
[Site "Chess.com"]
[Date "2024.05.07"]
[Round "5"]
[White "dianamirza"]
[Black "schondeln"]
[Result "0-1"]
[WhiteElo "1939"]
[BlackElo "2368"]
[TimeControl "180+1"]
[EndTime "14:54:43 PDT"]
[Termination "schondeln won by resignation"]

1. e4 {[%clk 0:02:50.2]} 1... d5 {[%clk 0:02:58.6]} 2. exd5 {[%clk 0:02:50.5]}
2... Qxd5 {[%clk 0:02:59]} 3. Nc3 {[%clk 0:02:51.4]} 3... Qa5 {[%clk 0:02:58.7]}
4. d4 {[%clk 0:02:51.6]} 4... Nf6 {[%clk 0:02:58.6]} 5. Nf3 {[%clk 0:02:49.8]}
5... Bf5 {[%clk 0:02:57.9]} 6. Bd2 {[%clk 0:02:45.2]} 6... c6 {[%clk 0:02:57.6]}
7. Ne4 {[%clk 0:02:40]} 7... Qc7 {[%clk 0:02:56.1]} 8. Nxf6+ {[%clk 0:02:40.2]}
8... gxf6 {[%clk 0:02:56.6]} 9. Bc4 {[%clk 0:02:38.2]} 9... e6 {[%clk 0:02:54]}
10. Qe2 {[%clk 0:02:38.3]} 10... Nd7 {[%clk 0:02:53.6]} 11. O-O-O {[%clk
0:02:38]} 11... O-O-O {[%clk 0:02:52.7]} 12. Bd3 {[%clk 0:02:37.2]} 12... Bg6
{[%clk 0:02:51.7]} 13. Nh4 {[%clk 0:02:35.8]} 13... Bd6 {[%clk 0:02:50.6]} 14.
Nxg6 {[%clk 0:02:34.6]} 14... hxg6 {[%clk 0:02:50.2]} 15. g3 {[%clk 0:02:34.6]}
15... Kb8 {[%clk 0:02:42.4]} 16. f4 {[%clk 0:02:33.3]} 16... f5 {[%clk
0:02:41.4]} 17. Kb1 {[%clk 0:02:18.4]} 17... c5 {[%clk 0:02:32.8]} 18. dxc5
{[%clk 0:02:15.8]} 18... Nxc5 {[%clk 0:02:32.3]} 19. Bc3 {[%clk 0:02:15.4]}
19... Rhe8 {[%clk 0:02:29.3]} 20. Bf6 {[%clk 0:02:13.7]} 20... Rc8 {[%clk
0:02:27.9]} 21. Bb5 {[%clk 0:02:12.8]} 21... Ne4 {[%clk 0:02:12.3]} 22. Bxe8
{[%clk 0:02:08.3]} 22... Nxf6 {[%clk 0:02:11.8]} 23. Ba4 {[%clk 0:01:59.1]}
23... Qb6 {[%clk 0:02:01.6]} 24. Bb3 {[%clk 0:01:51.9]} 24... Ne4 {[%clk
0:02:01.3]} 25. Rhe1 {[%clk 0:01:37.6]} 25... Be7 {[%clk 0:01:52.4]} 26. Rd7
{[%clk 0:01:34]} 26... Rc7 {[%clk 0:01:46.5]} 27. Rxc7 {[%clk 0:01:32.8]} 27...
Qxc7 {[%clk 0:01:47.4]} 28. Rd1 {[%clk 0:01:21.9]} 28... Bf6 {[%clk 0:01:45.1]}
29. Qc4 {[%clk 0:01:20.1]} 29... Qb6 {[%clk 0:01:39.8]} 30. a4 {[%clk
0:01:02.8]} 30... a6 {[%clk 0:01:39]} 31. Ka2 {[%clk 0:00:57.9]} 31... Ka7
{[%clk 0:01:22.2]} 32. c3 {[%clk 0:00:48.4]} 32... Nc5 {[%clk 0:01:18.7]} 33.
Bc2 {[%clk 0:00:38.5]} 33... a5 {[%clk 0:01:13.4]} 34. Qb5 {[%clk 0:00:31.6]}
34... Qc7 {[%clk 0:01:11.3]} 35. b4 {[%clk 0:00:23.9]} 35... axb4 {[%clk
0:01:10.1]} 36. cxb4 {[%clk 0:00:24.8]} 36... Na6 {[%clk 0:01:10]} 37. Qd3
{[%clk 0:00:10.4]} 37... Nxb4+ {[%clk 0:01:08.7]} 0-1

[Event "Late-Titled-Tuesday-Blitz-May-07-2024"]
[Site "Chess.com"]
[Date "2024.05.07"]
[Round "5"]
[White "Blackmind96"]
[Black "ArtemDyachuk"]
[Result "1-0"]
[WhiteElo "2894"]
[BlackElo "2701"]
[TimeControl "180+1"]
[EndTime "14:54:45 PDT"]
[Termination "Blackmind96 won by resignation"]

1. d4 {[%clk 0:03:00]} 1... Nf6 {[%clk 0:02:57.4]} 2. c4 {[%clk 0:02:59]} 2...
e6 {[%clk 0:02:57.4]} 3. Nc3 {[%clk 0:02:58]} 3... c5 {[%clk 0:02:55]} 4. d5
{[%clk 0:02:50.8]} 4... exd5 {[%clk 0:02:55.9]} 5. cxd5 {[%clk 0:02:51.6]} 5...
d6 {[%clk 0:02:55.9]} 6. e4 {[%clk 0:02:51.7]} 6... g6 {[%clk 0:02:55.7]} 7. f4
{[%clk 0:02:51.6]} 7... Bg7 {[%clk 0:02:55.8]} 8. Bb5+ {[%clk 0:02:51.1]} 8...
Nfd7 {[%clk 0:02:56.4]} 9. Nf3 {[%clk 0:02:50.8]} 9... O-O {[%clk 0:02:57]} 10.
O-O {[%clk 0:02:50.9]} 10... Nf6 {[%clk 0:02:47.6]} 11. h3 {[%clk 0:02:47.6]}
11... a6 {[%clk 0:02:44.4]} 12. Bd3 {[%clk 0:02:47.5]} 12... Nfd7 {[%clk
0:02:18.4]} 13. a3 {[%clk 0:02:33.6]} 13... b5 {[%clk 0:02:17.7]} 14. Be3 {[%clk
0:02:32.5]} 14... Bb7 {[%clk 0:02:16.3]} 15. Qd2 {[%clk 0:02:21.6]} 15... Re8
{[%clk 0:02:12.2]} 16. Rae1 {[%clk 0:02:20.5]} 16... Nb6 {[%clk 0:02:09.4]} 17.
Qf2 {[%clk 0:02:15.3]} 17... N8d7 {[%clk 0:02:00.3]} 18. f5 {[%clk 0:02:03.8]}
18... Rf8 {[%clk 0:01:44.3]} 19. Bg5 {[%clk 0:02:00]} 19... f6 {[%clk
0:01:42.2]} 20. Bf4 {[%clk 0:01:56.1]} 20... Qe7 {[%clk 0:01:36.8]} 21. fxg6
{[%clk 0:01:52.4]} 21... hxg6 {[%clk 0:01:36]} 22. Qg3 {[%clk 0:01:52.5]} 22...
Ne5 {[%clk 0:01:30.7]} 23. Nxe5 {[%clk 0:01:38.9]} 23... fxe5 {[%clk 0:01:31.6]}
24. Bg5 {[%clk 0:01:36.2]} 24... Qc7 {[%clk 0:01:23.3]} 25. Be2 {[%clk
0:01:25.4]} 25... Rxf1+ {[%clk 0:01:14]} 26. Rxf1 {[%clk 0:01:26.3]} 26... Rf8
{[%clk 0:01:14.2]} 27. Rxf8+ {[%clk 0:01:22.3]} 27... Kxf8 {[%clk 0:01:15.1]}
28. Be3 {[%clk 0:01:16.3]} 28... Kf7 {[%clk 0:00:50.1]} 29. Bg4 {[%clk
0:01:15.9]} 29... Bc8 {[%clk 0:00:49.8]} 30. Be6+ {[%clk 0:01:16]} 30... Bxe6
{[%clk 0:00:45.2]} 31. dxe6+ {[%clk 0:01:16.9]} 31... Kxe6 {[%clk 0:00:46.1]}
32. Qxg6+ {[%clk 0:01:09.6]} 32... Bf6 {[%clk 0:00:46.3]} 33. Nd5 {[%clk
0:01:05.8]} 33... Nxd5 {[%clk 0:00:39.1]} 34. exd5+ {[%clk 0:01:06.7]} 34... Ke7
{[%clk 0:00:39.7]} 35. Qh7+ {[%clk 0:00:56.2]} 35... Kd8 {[%clk 0:00:39.2]} 36.
Qg8+ {[%clk 0:00:56.1]} 36... Kd7 {[%clk 0:00:39.2]} 37. Qe6+ {[%clk 0:00:56.2]}
37... Kd8 {[%clk 0:00:40.1]} 38. Qxf6+ {[%clk 0:00:56.7]} 38... Kc8 {[%clk
0:00:38.1]} 39. Bg5 {[%clk 0:00:55.5]} 39... Qa5 {[%clk 0:00:37.7]} 1-0

[Event "Late-Titled-Tuesday-Blitz-May-07-2024"]
[Site "Chess.com"]
[Date "2024.05.07"]
[Round "5"]
[White "djano"]
[Black "esrosenberg"]
[Result "1-0"]
[WhiteElo "2537"]
[BlackElo "2321"]
[TimeControl "180+1"]
[EndTime "14:54:49 PDT"]
[Termination "djano won by resignation"]

1. Nf3 {[%clk 0:03:00.9]} 1... d5 {[%clk 0:02:59.6]} 2. g3 {[%clk 0:02:59]} 2...
Nd7 {[%clk 0:02:59.4]} 3. Bg2 {[%clk 0:02:57.7]} 3... e5 {[%clk 0:02:59.4]} 4.
O-O {[%clk 0:02:57.8]} 4... e4 {[%clk 0:02:59.1]} 5. Ne1 {[%clk 0:02:56.6]} 5...
h5 {[%clk 0:02:59.8]} 6. d3 {[%clk 0:02:55.1]} 6... h4 {[%clk 0:03:00.4]} 7.
dxe4 {[%clk 0:02:55]} 7... hxg3 {[%clk 0:02:53.5]} 8. hxg3 {[%clk 0:02:39]} 8...
dxe4 {[%clk 0:02:52.4]} 9. Nc3 {[%clk 0:02:32.2]} 9... Ngf6 {[%clk 0:02:51.9]}
10. Nxe4 {[%clk 0:02:28.4]} 10... Nxe4 {[%clk 0:02:47.1]} 11. Bxe4 {[%clk
0:02:28.1]} 11... Bd6 {[%clk 0:02:46.2]} 12. Kg2 {[%clk 0:02:23]} 12... Nf6
{[%clk 0:02:41.5]} 13. Bg5 {[%clk 0:01:44.7]} 13... Bh3+ {[%clk 0:02:37.5]} 14.
Kg1 {[%clk 0:01:45.1]} 14... Bxf1 {[%clk 0:02:36.2]} 15. Kxf1 {[%clk 0:01:46]}
15... c6 {[%clk 0:01:49.9]} 16. Qd4 {[%clk 0:01:40.4]} 16... Qe7 {[%clk
0:01:37.2]} 17. Bg2 {[%clk 0:01:31.1]} 17... Bc5 {[%clk 0:01:26.2]} 18. Qc4
{[%clk 0:01:16.8]} 18... O-O-O {[%clk 0:01:15.1]} 19. b4 {[%clk 0:01:12.6]}
19... Bb6 {[%clk 0:00:55.6]} 20. Nd3 {[%clk 0:01:01.3]} 20... Kb8 {[%clk
0:00:32.4]} 21. b5 {[%clk 0:00:53.9]} 21... Rd4 {[%clk 0:00:23.5]} 22. Qc3
{[%clk 0:00:48.9]} 22... Qe6 {[%clk 0:00:15]} 23. bxc6 {[%clk 0:00:44.6]} 23...
bxc6 {[%clk 0:00:15.2]} 24. Rb1 {[%clk 0:00:44.2]} 24... Kc7 {[%clk 0:00:10.9]}
25. Rxb6 {[%clk 0:00:41.3]} 25... Rxd3 {[%clk 0:00:11.2]} 26. Rxc6+ {[%clk
0:00:40.9]} 26... Kd7 {[%clk 0:00:09.5]} 27. Qxd3+ {[%clk 0:00:39.1]} 1-0

[Event "Late-Titled-Tuesday-Blitz-May-07-2024"]
[Site "Chess.com"]
[Date "2024.05.07"]
[Round "5"]
[White "Tibmat"]
[Black "picturesquecheck"]
[Result "1-0"]
[WhiteElo "2683"]
[BlackElo "2452"]
[TimeControl "180+1"]
[EndTime "14:54:50 PDT"]
[Termination "Tibmat won by resignation"]

1. c4 {[%clk 0:03:00.9]} 1... Nf6 {[%clk 0:02:41.3]} 2. g3 {[%clk 0:02:59.8]}
2... g6 {[%clk 0:02:36.2]} 3. Bg2 {[%clk 0:03:00]} 3... Bg7 {[%clk 0:02:35.7]}
4. Nc3 {[%clk 0:03:00.9]} 4... O-O {[%clk 0:02:35.4]} 5. e4 {[%clk 0:03:01.8]}
5... d6 {[%clk 0:02:34.3]} 6. Nge2 {[%clk 0:03:02.1]} 6... c5 {[%clk 0:02:33.3]}
7. O-O {[%clk 0:03:02]} 7... Nc6 {[%clk 0:02:31.4]} 8. d3 {[%clk 0:03:02.9]}
8... Bg4 {[%clk 0:02:29.2]} 9. h3 {[%clk 0:03:01.1]} 9... Bxe2 {[%clk
0:02:20.6]} 10. Nxe2 {[%clk 0:03:02]} 10... Nd7 {[%clk 0:02:19.3]} 11. Rb1
{[%clk 0:02:59.7]} 11... a6 {[%clk 0:02:13.8]} 12. Be3 {[%clk 0:02:57.1]} 12...
Rc8 {[%clk 0:02:06]} 13. Qd2 {[%clk 0:02:55.7]} 13... b5 {[%clk 0:02:04.9]} 14.
Bh6 {[%clk 0:02:37.9]} 14... b4 {[%clk 0:01:58.1]} 15. Bxg7 {[%clk 0:02:25.1]}
15... Kxg7 {[%clk 0:01:54.1]} 16. f4 {[%clk 0:02:26]} 16... e6 {[%clk
0:01:48.4]} 17. Kh2 {[%clk 0:02:15.2]} 17... Kg8 {[%clk 0:01:40.8]} 18. h4
{[%clk 0:01:51.3]} 18... Nf6 {[%clk 0:01:18.5]} 19. Bf3 {[%clk 0:01:46.7]} 19...
d5 {[%clk 0:01:15.8]} 20. cxd5 {[%clk 0:01:43.5]} 20... exd5 {[%clk 0:01:15.6]}
21. e5 {[%clk 0:01:44.4]} 21... Ne8 {[%clk 0:01:10.7]} 22. d4 {[%clk 0:01:41.5]}
22... c4 {[%clk 0:01:08.7]} 23. f5 {[%clk 0:01:33.1]} 23... c3 {[%clk
0:00:39.2]} 24. bxc3 {[%clk 0:01:31.7]} 24... bxc3 {[%clk 0:00:40.1]} 25. Nxc3
{[%clk 0:01:32.2]} 25... Qa5 {[%clk 0:00:35]} 26. Rb3 {[%clk 0:01:11.9]} 26...
Ng7 {[%clk 0:00:33.9]} 27. fxg6 {[%clk 0:01:05.1]} 27... hxg6 {[%clk 0:00:34.8]}
28. Bxd5 {[%clk 0:01:02.6]} 28... Nf5 {[%clk 0:00:34.2]} 29. Rxf5 {[%clk
0:01:01.2]} 29... gxf5 {[%clk 0:00:34.4]} 30. Qg5+ {[%clk 0:01:01.2]} 30... Kh7
{[%clk 0:00:34.7]} 31. Qxf5+ {[%clk 0:00:59.5]} 31... Kg7 {[%clk 0:00:35.1]} 32.
Qf6+ {[%clk 0:00:55.6]} 32... Kh7 {[%clk 0:00:35]} 33. Bxc6 {[%clk 0:00:52]}
33... Qd8 {[%clk 0:00:27.5]} 34. Be4+ {[%clk 0:00:44.1]} 34... Kg8 {[%clk
0:00:25.3]} 35. Qf5 {[%clk 0:00:44.8]} 1-0